[Event "Titled Tuesday Blitz February 21 Late 2023"]
[White "Yuan, Qingyu"]
[Black "Zhurbinsky, David"]
[WhiteFideId "8609772"]
[BlackFideId "2072904"]
[WhiteElo "2373"]
[BlackElo "2045"]
[Result "1-0"]
[Round "07"]
[TimeControl "180+2"]
[Date "2023.02.21"]
[WhiteClock "0:00:22"]
[BlackClock "0:00:33"]

1. e4 {[%clk 0:03:00]}  e5 {[%clk 0:02:59]} 2. Nf3 {[%clk 0:03:01]}  Nc6 {[%clk 0:03:00]} 3. Bb5 {[%clk 0:03:02]}  a6 {[%clk 0:03:00]} 4. Ba4 {[%clk 0:03:02]}  Nf6 {[%clk 0:03:00]} 5. d3 {[%clk 0:03:02]}  Be7 {[%clk 0:03:00]} 6. Bxc6 {[%clk 0:03:03]}  bxc6 {[%clk 0:02:58]} 7. Nxe5 {[%clk 0:03:03]}  O-O {[%clk 0:02:58]} 8. O-O {[%clk 0:02:58]}  Re8 {[%clk 0:02:55]} 9. Nc3 {[%clk 0:02:55]}  Bb7 {[%clk 0:02:54]} 10. Nf3 {[%clk 0:02:47]}  d5 {[%clk 0:02:53]} 11. e5 {[%clk 0:02:43]}  Nd7 {[%clk 0:02:54]} 12. d4 {[%clk 0:02:42]}  c5 {[%clk 0:02:54]} 13. Bf4 {[%clk 0:02:25]}  cxd4 {[%clk 0:02:53]} 14. Nxd4 {[%clk 0:02:14]}  c5 {[%clk 0:02:47]} 15. Nf5 {[%clk 0:02:08]}  d4 {[%clk 0:02:36]} 16. Qg4 {[%clk 0:01:40]}  g6 {[%clk 0:02:36]} 17. Ne2 {[%clk 0:01:20]}  Bf8 {[%clk 0:02:30]} 18. Nh6+ {[%clk 0:00:56]}  Bxh6 {[%clk 0:02:26]} 19. Bxh6 {[%clk 0:00:57]}  Nxe5 {[%clk 0:02:25]} 20. Qf4 {[%clk 0:00:53]}  f5 {[%clk 0:02:17]} 21. Ng3 {[%clk 0:00:45]}  Ng4 {[%clk 0:02:05]} 22. Rfe1 {[%clk 0:00:21]}  Qd5 {[%clk 0:01:56]} 23. f3 {[%clk 0:00:19]}  Ne3 {[%clk 0:01:52]} 24. Re2 {[%clk 0:00:18]}  a5 {[%clk 0:01:36]} 25. Nh5 {[%clk 0:00:16]}  gxh5 {[%clk 0:01:19]} 26. Qg5+ {[%clk 0:00:16]}  Kf7 {[%clk 0:01:19]} 27. Qg7+ {[%clk 0:00:17]}  Ke6 {[%clk 0:01:20]} 28. Bxe3 {[%clk 0:00:14]}  dxe3 {[%clk 0:01:19]} 29. Rxe3+ {[%clk 0:00:14]}  Kd6 {[%clk 0:01:08]} 30. Rd3 {[%clk 0:00:15]}  c4 {[%clk 0:00:55]} 31. Rxd5+ {[%clk 0:00:15]}  Bxd5 {[%clk 0:00:56]} 32. Rd1 {[%clk 0:00:14]}  Kc6 {[%clk 0:00:51]} 33. Qxh7 {[%clk 0:00:10]}  Re2 {[%clk 0:00:44]} 34. Qxf5 {[%clk 0:00:09]}  Rd8 {[%clk 0:00:41]} 35. h4 {[%clk 0:00:07]}  Be6 {[%clk 0:00:32]} 36. Qxe6+ {[%clk 0:00:04]}  Rxe6 {[%clk 0:00:33]} 37. Rxd8 {[%clk 0:00:05]}  Re2 {[%clk 0:00:34]} 38. Rc8+ {[%clk 0:00:04]}  Kd5 {[%clk 0:00:32]} 39. Rd8+ {[%clk 0:00:04]}  Kc5 {[%clk 0:00:33]} 40. Rc8+ {[%clk 0:00:05]}  Kd4 {[%clk 0:00:32]} 41. c3+ {[%clk 0:00:04]}  Kd3 {[%clk 0:00:31]} 42. b3 {[%clk 0:00:05]}  Kxc3 {[%clk 0:00:20]} 43. Rxc4+ {[%clk 0:00:04]}  Kd3 {[%clk 0:00:20]} 44. Ra4 {[%clk 0:00:05]}  Re5 {[%clk 0:00:15]} 45. Kf2 {[%clk 0:00:05]}  Rf5 {[%clk 0:00:12]} 46. Kg3 {[%clk 0:00:05]}  Ke3 {[%clk 0:00:13]} 47. Re4+ {[%clk 0:00:05]}  Kd3 {[%clk 0:00:13]} 48. Kf2 {[%clk 0:00:06]}  Rc5 {[%clk 0:00:13]} 49. Ra4 {[%clk 0:00:06]}  Rf5 {[%clk 0:00:12]} 50. Kg1 {[%clk 0:00:05]}  Re5 {[%clk 0:00:12]} 51. Kh2 {[%clk 0:00:06]}  Rc5 {[%clk 0:00:13]} 52. Kh3 {[%clk 0:00:06]}  Ke3 {[%clk 0:00:13]} 53. Re4+ {[%clk 0:00:06]}  Kf2 {[%clk 0:00:14]} 54. Rc4 {[%clk 0:00:04]}  Rd5 {[%clk 0:00:14]} 55. Rc2+ {[%clk 0:00:04]}  Ke3 {[%clk 0:00:14]} 56. Kg3 {[%clk 0:00:04]}  Rd8 {[%clk 0:00:13]} 57. Rc5 {[%clk 0:00:03]}  Rg8+ {[%clk 0:00:12]} 58. Rg5 {[%clk 0:00:03]}  Rd8 {[%clk 0:00:13]} 59. Re5+ {[%clk 0:00:04]}  Kd4 {[%clk 0:00:13]} 60. Rxa5 {[%clk 0:00:04]}  Rg8+ {[%clk 0:00:13]} 61. Rg5 {[%clk 0:00:05]}  Ra8 {[%clk 0:00:13]} 62. a4 {[%clk 0:00:05]}  Kc3 {[%clk 0:00:13]} 63. Rb5 {[%clk 0:00:06]}  Kd3 {[%clk 0:00:14]} 64. Kf2 {[%clk 0:00:06]}  Rc8 {[%clk 0:00:13]} 65. Rxh5 {[%clk 0:00:06]}  Rc2+ {[%clk 0:00:13]} 66. Kg3 {[%clk 0:00:07]}  Kd4 {[%clk 0:00:14]} 67. Rb5 {[%clk 0:00:07]}  Ke3 {[%clk 0:00:14]} 68. Re5+ {[%clk 0:00:07]}  Kd4 {[%clk 0:00:14]} 69. Re4+ {[%clk 0:00:08]}  Kd3 {[%clk 0:00:14]} 70. b4 {[%clk 0:00:08]}  Rc8 {[%clk 0:00:15]} 71. a5 {[%clk 0:00:09]}  Rg8+ {[%clk 0:00:16]} 72. Rg4 {[%clk 0:00:09]}  Rb8 {[%clk 0:00:17]} 73. Kh3 {[%clk 0:00:10]}  Kc3 {[%clk 0:00:18]} 74. Kg3 {[%clk 0:00:10]}  Kd3 {[%clk 0:00:18]} 75. h5 {[%clk 0:00:11]}  Ke3 {[%clk 0:00:19]} 76. Rh4 {[%clk 0:00:11]}  Rg8+ {[%clk 0:00:19]} 77. Rg4 {[%clk 0:00:11]}  Rh8 {[%clk 0:00:20]} 78. Rg5 {[%clk 0:00:12]}  Kd4 {[%clk 0:00:20]} 79. b5 {[%clk 0:00:12]}  Kc4 {[%clk 0:00:20]} 80. a6 {[%clk 0:00:13]}  Kb4 {[%clk 0:00:20]} 81. Kg4 {[%clk 0:00:13]}  Ka5 {[%clk 0:00:20]} 82. f4 {[%clk 0:00:14]}  Kb6 {[%clk 0:00:21]} 83. g3 {[%clk 0:00:14]}  Rd8 {[%clk 0:00:22]} 84. Re5 {[%clk 0:00:14]}  Ka7 {[%clk 0:00:21]} 85. Kh4 {[%clk 0:00:15]}  Kb6 {[%clk 0:00:22]} 86. g4 {[%clk 0:00:15]}  Ka7 {[%clk 0:00:23]} 87. Rf5 {[%clk 0:00:15]}  Kb6 {[%clk 0:00:23]} 88. Rg5 {[%clk 0:00:16]}  Ka7 {[%clk 0:00:24]} 89. Re5 {[%clk 0:00:17]}  Kb6 {[%clk 0:00:25]} 90. h6 {[%clk 0:00:18]}  Ka7 {[%clk 0:00:26]} 91. Rf5 {[%clk 0:00:19]}  Kb6 {[%clk 0:00:27]} 92. Kh5 {[%clk 0:00:19]}  Rh8 {[%clk 0:00:27]} 93. g5 {[%clk 0:00:20]}  Rg8 {[%clk 0:00:28]} 94. Re5 {[%clk 0:00:20]}  Rd8 {[%clk 0:00:28]} 95. Kg4 {[%clk 0:00:20]}  Rd1 {[%clk 0:00:28]} 96. Kf5 {[%clk 0:00:20]}  Rd8 {[%clk 0:00:29]} 97. Kg6 {[%clk 0:00:21]}  Rd6+ {[%clk 0:00:28]} 98. Kg7 {[%clk 0:00:20]}  Rd7+ {[%clk 0:00:29]} 99. Kf6 {[%clk 0:00:21]}  Rd8 {[%clk 0:00:29]} 100. f5 {[%clk 0:00:21]}  Rf8+ {[%clk 0:00:30]} 101. Kg6 {[%clk 0:00:22]}  Re8 {[%clk 0:00:30]} 102. Rd5 {[%clk 0:00:20]}  Rg8+ {[%clk 0:00:30]} 103. Kh5 {[%clk 0:00:20]}  Rf8 {[%clk 0:00:30]} 104. g6 {[%clk 0:00:20]}  Rd8 {[%clk 0:00:29]} 105. Rxd8 {[%clk 0:00:20]}  Ka7 {[%clk 0:00:29]} 106. Rd5 {[%clk 0:00:20]}  Kb6 {[%clk 0:00:29]} 107. h7 {[%clk 0:00:20]}  Ka7 {[%clk 0:00:30]} 108. h8=Q {[%clk 0:00:21]}  Kb6 {[%clk 0:00:31]} 109. g7 {[%clk 0:00:21]}  Ka7 {[%clk 0:00:31]} 110. g8=Q {[%clk 0:00:22]}  Kb6 {[%clk 0:00:32]} 111. Qd8+ {[%clk 0:00:22]}  Ka7 {[%clk 0:00:33]} 112. Qg7# {[%clk 0:00:22]} 1-0


[Site "https://www.chess.com"]

[Event "Titled Tuesday Blitz February 21 Late 2023"]
[White "Maltsevskaya, Aleksandra"]
[Black "Holt, Conrad"]
[WhiteFideId "24174041"]
[BlackFideId "2034387"]
[WhiteElo "2390"]
[BlackElo "2540"]
[Result "0-1"]
[Round "07"]
[TimeControl "180+2"]
[Date "2023.02.21"]
[WhiteClock "0:00:02"]
[BlackClock "0:00:54"]

1. e4 {[%clk 0:02:59]}  e6 {[%clk 0:02:59]} 2. d4 {[%clk 0:02:53]}  d5 {[%clk 0:03:00]} 3. Nd2 {[%clk 0:02:52]}  c5 {[%clk 0:02:59]} 4. exd5 {[%clk 0:02:50]}  Qxd5 {[%clk 0:02:59]} 5. Ngf3 {[%clk 0:02:45]}  cxd4 {[%clk 0:02:58]} 6. Bc4 {[%clk 0:02:46]}  Qd6 {[%clk 0:02:58]} 7. O-O {[%clk 0:02:43]}  Nf6 {[%clk 0:02:59]} 8. Nb3 {[%clk 0:02:40]}  Nc6 {[%clk 0:02:59]} 9. Nbxd4 {[%clk 0:02:40]}  Nxd4 {[%clk 0:02:59]} 10. Nxd4 {[%clk 0:02:40]}  a6 {[%clk 0:03:00]} 11. c3 {[%clk 0:02:40]}  Be7 {[%clk 0:02:58]} 12. Qe2 {[%clk 0:02:38]}  O-O {[%clk 0:02:56]} 13. Rd1 {[%clk 0:02:38]}  Qc7 {[%clk 0:02:54]} 14. Bg5 {[%clk 0:02:36]}  e5 {[%clk 0:02:27]} 15. Nf3 {[%clk 0:02:28]}  Bg4 {[%clk 0:02:25]} 16. Bxf6 {[%clk 0:01:39]}  Bxf6 {[%clk 0:02:24]} 17. Bd5 {[%clk 0:01:39]}  g6 {[%clk 0:02:18]} 18. h3 {[%clk 0:01:27]}  Bd7 {[%clk 0:02:18]} 19. Re1 {[%clk 0:01:23]}  Rae8 {[%clk 0:02:09]} 20. Rad1 {[%clk 0:01:19]}  Kg7 {[%clk 0:01:53]} 21. Qe4 {[%clk 0:01:09]}  Bf5 {[%clk 0:01:48]} 22. Qe3 {[%clk 0:01:10]}  h6 {[%clk 0:01:41]} 23. Nd2 {[%clk 0:01:01]}  Bg5 {[%clk 0:01:39]} 24. Qf3 {[%clk 0:01:01]}  Bc2 {[%clk 0:01:26]} 25. Bb3 {[%clk 0:00:05]}  Bxd1 {[%clk 0:01:25]} 26. Rxd1 {[%clk 0:00:05]}  Rd8 {[%clk 0:01:22]} 27. Ne4 {[%clk 0:00:04]}  Rxd1+ {[%clk 0:01:20]} 28. Qxd1 {[%clk 0:00:05]}  Rd8 {[%clk 0:01:13]} 29. Qf3 {[%clk 0:00:04]}  f5 {[%clk 0:01:12]} 30. Nxg5 {[%clk 0:00:05]}  hxg5 {[%clk 0:01:12]} 31. Qg3 {[%clk 0:00:05]}  Qe7 {[%clk 0:01:07]} 32. Qe3 {[%clk 0:00:05]}  e4 {[%clk 0:01:04]} 33. Qe2 {[%clk 0:00:02]}  f4 {[%clk 0:01:02]} 34. Qc4 {[%clk 0:00:02]}  e3 {[%clk 0:01:00]} 35. fxe3 {[%clk 0:00:03]}  Qxe3+ {[%clk 0:00:59]} 36. Kh2 {[%clk 0:00:03]}  Qg3+ {[%clk 0:00:54]} 37. Kh1 {[%clk 0:00:02]}  Qe1+ {[%clk 0:00:54]} 38. Kh2 {[%clk 0:00:02]}  Qe7 {[%clk 0:00:54]} 0-1


[Site "https://www.chess.com"]

[Event "Titled Tuesday Blitz February 21 Late 2023"]
[White "Oganian, Miran"]
[Black "Sielecki, Christof"]
[WhiteFideId "4122488"]
[BlackFideId "4620437"]
[WhiteElo "2439"]
[BlackElo "2419"]
[Result "1-0"]
[Round "07"]
[TimeControl "180+2"]
[Date "2023.02.21"]
[WhiteClock "0:00:34"]
[BlackClock "0:00:08"]

1. e4 {[%clk 0:02:59]}  c5 {[%clk 0:03:00]} 2. Nf3 {[%clk 0:02:59]}  a6 {[%clk 0:03:00]} 3. c3 {[%clk 0:02:59]}  d5 {[%clk 0:03:00]} 4. exd5 {[%clk 0:02:59]}  Qxd5 {[%clk 0:03:01]} 5. d4 {[%clk 0:02:59]}  e6 {[%clk 0:03:01]} 6. Be2 {[%clk 0:02:59]}  cxd4 {[%clk 0:02:59]} 7. Nxd4 {[%clk 0:02:58]}  e5 {[%clk 0:02:58]} 8. Nb3 {[%clk 0:02:54]}  Qxg2 {[%clk 0:02:48]} 9. Bf3 {[%clk 0:02:54]}  Qg6 {[%clk 0:02:47]} 10. Na3 {[%clk 0:02:50]}  Nf6 {[%clk 0:02:29]} 11. Nc4 {[%clk 0:02:49]}  Nbd7 {[%clk 0:02:02]} 12. Nd6+ {[%clk 0:02:44]}  Bxd6 {[%clk 0:02:01]} 13. Qxd6 {[%clk 0:02:45]}  Qf5 {[%clk 0:01:38]} 14. Nd2 {[%clk 0:02:15]}  e4 {[%clk 0:01:31]} 15. Be2 {[%clk 0:02:12]}  Qe5 {[%clk 0:01:17]} 16. Nc4 {[%clk 0:02:11]}  Qxd6 {[%clk 0:00:59]} 17. Nxd6+ {[%clk 0:02:12]}  Ke7 {[%clk 0:01:00]} 18. Nf5+ {[%clk 0:02:11]}  Kf8 {[%clk 0:01:00]} 19. Bf4 {[%clk 0:02:09]}  h6 {[%clk 0:00:51]} 20. O-O-O {[%clk 0:02:07]}  g6 {[%clk 0:00:45]} 21. Nd6 {[%clk 0:02:00]}  Kg7 {[%clk 0:00:33]} 22. Rhg1 {[%clk 0:01:58]}  h5 {[%clk 0:00:30]} 23. Bc4 {[%clk 0:01:57]}  Rf8 {[%clk 0:00:27]} 24. Nf5+ {[%clk 0:01:54]}  Kh7 {[%clk 0:00:26]} 25. Nd6 {[%clk 0:01:51]}  Kg7 {[%clk 0:00:26]} 26. Bb3 {[%clk 0:01:44]}  b5 {[%clk 0:00:26]} 27. Be3 {[%clk 0:01:21]}  Ng4 {[%clk 0:00:16]} 28. Bd4+ {[%clk 0:01:19]}  Kh7 {[%clk 0:00:14]} 29. Nxf7 {[%clk 0:01:18]}  Nxh2 {[%clk 0:00:13]} 30. Ng5+ {[%clk 0:01:17]}  Kh6 {[%clk 0:00:13]} 31. Be3 {[%clk 0:01:12]}  Ng4 {[%clk 0:00:12]} 32. Rxg4 {[%clk 0:01:08]}  hxg4 {[%clk 0:00:12]} 33. Ne6+ {[%clk 0:01:07]}  Kh7 {[%clk 0:00:10]} 34. Rh1+ {[%clk 0:01:00]}  Kg8 {[%clk 0:00:10]} 35. Ng5+ {[%clk 0:00:56]}  Kg7 {[%clk 0:00:09]} 36. Rh7+ {[%clk 0:00:55]}  Kf6 {[%clk 0:00:09]} 37. Nxe4+ {[%clk 0:00:55]}  Ke5 {[%clk 0:00:10]} 38. Re7+ {[%clk 0:00:52]}  Kf5 {[%clk 0:00:09]} 39. Re6 {[%clk 0:00:36]}  Ne5 {[%clk 0:00:08]} 40. Ng3# {[%clk 0:00:34]} 1-0


[Site "https://www.chess.com"]

[Event "Titled Tuesday Blitz February 21 Late 2023"]
[White "Hambleton, Aman"]
[Black "Melian, Juan Sebastian"]
[WhiteFideId "2606577"]
[BlackFideId "3706575"]
[WhiteElo "2420"]
[BlackElo "2293"]
[Result "1-0"]
[Round "07"]
[TimeControl "180+2"]
[Date "2023.02.21"]
[WhiteClock "0:00:04"]
[BlackClock "0:00:04"]

1. d4 {[%clk 0:03:00]}  Nf6 {[%clk 0:02:59]} 2. c4 {[%clk 0:02:52]}  e6 {[%clk 0:02:58]} 3. Nc3 {[%clk 0:02:51]}  Bb4 {[%clk 0:02:56]} 4. Qc2 {[%clk 0:02:50]}  c5 {[%clk 0:02:55]} 5. dxc5 {[%clk 0:02:46]}  Qc7 {[%clk 0:02:56]} 6. a3 {[%clk 0:02:20]}  Bxc5 {[%clk 0:02:56]} 7. b4 {[%clk 0:02:20]}  Be7 {[%clk 0:02:55]} 8. Nb5 {[%clk 0:02:19]}  Qc6 {[%clk 0:02:55]} 9. Nf3 {[%clk 0:01:21]}  d6 {[%clk 0:02:54]} 10. Nfd4 {[%clk 0:01:18]}  Qd7 {[%clk 0:02:53]} 11. e4 {[%clk 0:01:11]}  O-O {[%clk 0:02:50]} 12. Be2 {[%clk 0:01:10]}  a6 {[%clk 0:02:46]} 13. Nc3 {[%clk 0:01:10]}  Qc7 {[%clk 0:02:44]} 14. Be3 {[%clk 0:01:06]}  b6 {[%clk 0:02:42]} 15. O-O {[%clk 0:01:03]}  Bb7 {[%clk 0:02:42]} 16. Rac1 {[%clk 0:00:58]}  Nbd7 {[%clk 0:02:42]} 17. f3 {[%clk 0:00:51]}  Rac8 {[%clk 0:02:39]} 18. Nb3 {[%clk 0:00:45]}  Rfe8 {[%clk 0:02:30]} 19. Qd2 {[%clk 0:00:33]}  Qb8 {[%clk 0:02:23]} 20. Rfe1 {[%clk 0:00:31]}  Bf8 {[%clk 0:02:21]} 21. Bf1 {[%clk 0:00:30]}  Ne5 {[%clk 0:02:01]} 22. Na4 {[%clk 0:00:27]}  Ned7 {[%clk 0:01:23]} 23. Qf2 {[%clk 0:00:18]}  b5 {[%clk 0:01:14]} 24. cxb5 {[%clk 0:00:17]}  axb5 {[%clk 0:01:15]} 25. Bxb5 {[%clk 0:00:17]}  Rxc1 {[%clk 0:01:00]} 26. Rxc1 {[%clk 0:00:16]}  Rc8 {[%clk 0:00:59]} 27. Rxc8 {[%clk 0:00:15]}  Qxc8 {[%clk 0:01:00]} 28. Bd3 {[%clk 0:00:07]}  Ne5 {[%clk 0:01:00]} 29. Bf1 {[%clk 0:00:07]}  Qa8 {[%clk 0:00:56]} 30. Bb5 {[%clk 0:00:03]}  Ba6 {[%clk 0:00:50]} 31. Bxa6 {[%clk 0:00:03]}  Qxa6 {[%clk 0:00:51]} 32. Na5 {[%clk 0:00:04]}  Qb5 {[%clk 0:00:43]} 33. Nc3 {[%clk 0:00:03]}  Qb8 {[%clk 0:00:33]} 34. Qd2 {[%clk 0:00:02]}  h6 {[%clk 0:00:20]} 35. h3 {[%clk 0:00:02]}  g5 {[%clk 0:00:20]} 36. Bd4 {[%clk 0:00:02]}  Ned7 {[%clk 0:00:20]} 37. Ne2 {[%clk 0:00:02]}  Qc8 {[%clk 0:00:18]} 38. Qc3 {[%clk 0:00:02]}  Qd8 {[%clk 0:00:17]} 39. Nc6 {[%clk 0:00:02]}  Qa8 {[%clk 0:00:16]} 40. b5 {[%clk 0:00:01]}  e5 {[%clk 0:00:16]} 41. Be3 {[%clk 0:00:01]}  d5 {[%clk 0:00:16]} 42. Qc1 {[%clk 0:00:01]}  d4 {[%clk 0:00:16]} 43. Bd2 {[%clk 0:00:01]}  Bc5 {[%clk 0:00:15]} 44. a4 {[%clk 0:00:01]}  d3+ {[%clk 0:00:15]} 45. Be3 {[%clk 0:00:01]}  Bxe3+ {[%clk 0:00:14]} 46. Qxe3 {[%clk 0:00:02]}  dxe2 {[%clk 0:00:15]} 47. Qxe2 {[%clk 0:00:02]}  Qxa4 {[%clk 0:00:16]} 48. Kh2 {[%clk 0:00:02]}  Kg7 {[%clk 0:00:15]} 49. Ne7 {[%clk 0:00:02]}  Qb4 {[%clk 0:00:14]} 50. Nf5+ {[%clk 0:00:03]}  Kg6 {[%clk 0:00:14]} 51. Qd3 {[%clk 0:00:02]}  Nc5 {[%clk 0:00:13]} 52. Qd6 {[%clk 0:00:02]}  Qxb5 {[%clk 0:00:13]} 53. Qf8 {[%clk 0:00:02]}  Ne6 {[%clk 0:00:13]} 54. Qh8 {[%clk 0:00:02]}  Ng4+ {[%clk 0:00:02]} 55. hxg4 {[%clk 0:00:02]}  f6 {[%clk 0:00:03]} 56. Qxh6+ {[%clk 0:00:02]}  Kf7 {[%clk 0:00:04]} 57. Qh7+ {[%clk 0:00:03]}  Kf8 {[%clk 0:00:04]} 58. Qe7+ {[%clk 0:00:03]}  Kg8 {[%clk 0:00:04]} 59. Qxe6+ {[%clk 0:00:04]} 1-0


[Site "https://www.chess.com"]

[Event "Titled Tuesday Blitz February 21 Late 2023"]
[White "Koziorowicz, Michal"]
[Black "Martynov, Pavel"]
[WhiteFideId "21809194"]
[BlackFideId "4101260"]
[WhiteElo "2307"]
[BlackElo "2414"]
[Result "0-1"]
[Round "07"]
[TimeControl "180+2"]
[Date "2023.02.21"]
[WhiteClock "0:00:03"]
[BlackClock "0:00:38"]

1. Nc3 {[%clk 0:03:00]}  e6 {[%clk 0:02:51]} 2. e4 {[%clk 0:02:56]}  c5 {[%clk 0:02:50]} 3. Nf3 {[%clk 0:02:55]}  Nc6 {[%clk 0:02:48]} 4. d4 {[%clk 0:02:54]}  cxd4 {[%clk 0:02:49]} 5. Nxd4 {[%clk 0:02:55]}  Qc7 {[%clk 0:02:47]} 6. g3 {[%clk 0:02:55]}  a6 {[%clk 0:02:45]} 7. Bg2 {[%clk 0:02:55]}  d6 {[%clk 0:02:44]} 8. Nxc6 {[%clk 0:02:54]}  bxc6 {[%clk 0:02:40]} 9. O-O {[%clk 0:02:55]}  Bd7 {[%clk 0:02:39]} 10. Re1 {[%clk 0:02:52]}  Be7 {[%clk 0:02:38]} 11. e5 {[%clk 0:02:20]}  d5 {[%clk 0:02:33]} 12. Qg4 {[%clk 0:02:16]}  Kf8 {[%clk 0:02:29]} 13. Bf4 {[%clk 0:02:07]}  h5 {[%clk 0:02:27]} 14. Qe2 {[%clk 0:02:06]}  h4 {[%clk 0:02:25]} 15. Rad1 {[%clk 0:02:03]}  Rb8 {[%clk 0:02:17]} 16. b3 {[%clk 0:01:58]}  Bb4 {[%clk 0:02:17]} 17. Bd2 {[%clk 0:01:58]}  hxg3 {[%clk 0:02:12]} 18. fxg3 {[%clk 0:01:46]}  a5 {[%clk 0:02:05]} 19. Rf1 {[%clk 0:01:31]}  Ne7 {[%clk 0:01:47]} 20. Qf3 {[%clk 0:01:19]}  Be8 {[%clk 0:01:47]} 21. Bg5 {[%clk 0:01:07]}  Ng6 {[%clk 0:01:43]} 22. Bf4 {[%clk 0:00:39]}  Nxe5 {[%clk 0:01:40]} 23. Bxe5 {[%clk 0:00:37]}  Qxe5 {[%clk 0:01:40]} 24. Ne2 {[%clk 0:00:38]}  Bc5+ {[%clk 0:01:27]} 25. Kh1 {[%clk 0:00:37]}  Qd6 {[%clk 0:01:27]} 26. c4 {[%clk 0:00:19]}  Rh6 {[%clk 0:01:27]} 27. Nf4 {[%clk 0:00:17]}  e5 {[%clk 0:01:21]} 28. Ne2 {[%clk 0:00:15]}  e4 {[%clk 0:01:21]} 29. Qf5 {[%clk 0:00:13]}  g6 {[%clk 0:01:19]} 30. Qg5 {[%clk 0:00:11]}  Rh5 {[%clk 0:01:18]} 31. Qc1 {[%clk 0:00:09]}  Kg7 {[%clk 0:01:12]} 32. Bxe4 {[%clk 0:00:08]}  Bd7 {[%clk 0:01:10]} 33. Bg2 {[%clk 0:00:07]}  Rxh2+ {[%clk 0:01:04]} 34. Kxh2 {[%clk 0:00:08]}  Rh8+ {[%clk 0:01:05]} 35. Bh3 {[%clk 0:00:09]}  Bxh3 {[%clk 0:00:54]} 36. Qc3+ {[%clk 0:00:09]}  f6 {[%clk 0:00:51]} 37. Nd4 {[%clk 0:00:09]}  Bxf1+ {[%clk 0:00:50]} 38. Kg1 {[%clk 0:00:09]}  Bh3 {[%clk 0:00:41]} 39. Qe3 {[%clk 0:00:07]}  Bd7 {[%clk 0:00:38]} 40. Kg2 {[%clk 0:00:04]}  Qe5 {[%clk 0:00:37]} 41. Ne6+ {[%clk 0:00:01]}  Bxe6 {[%clk 0:00:36]} 42. Qxc5 {[%clk 0:00:02]}  Qe4+ {[%clk 0:00:36]} 43. Kf2 {[%clk 0:00:02]}  Rh2+ {[%clk 0:00:37]} 44. Kf1 {[%clk 0:00:03]}  Qg2+ {[%clk 0:00:37]} 45. Ke1 {[%clk 0:00:03]}  Qe2# {[%clk 0:00:38]} 0-1


[Site "https://www.chess.com"]

[Event "Titled Tuesday Blitz February 21 Late 2023"]
[White "Javakhadze, Zurab"]
[Black "Sztokbant, Bernardo Vainzoff"]
[WhiteFideId "13603647"]
[BlackFideId "2115956"]
[WhiteElo "2459"]
[BlackElo "2213"]
[Result "1-0"]
[Round "07"]
[TimeControl "180+2"]
[Date "2023.02.21"]
[WhiteClock "0:00:14"]
[BlackClock "0:00:01"]

1. g3 {[%clk 0:02:57]}  Nf6 {[%clk 0:02:59]} 2. Bg2 {[%clk 0:02:58]}  c6 {[%clk 0:02:59]} 3. e4 {[%clk 0:02:57]}  d5 {[%clk 0:03:00]} 4. e5 {[%clk 0:02:56]}  Nfd7 {[%clk 0:02:55]} 5. f4 {[%clk 0:02:56]}  e6 {[%clk 0:02:51]} 6. Nf3 {[%clk 0:02:48]}  c5 {[%clk 0:02:52]} 7. c3 {[%clk 0:02:48]}  Nc6 {[%clk 0:02:52]} 8. d4 {[%clk 0:02:48]}  Be7 {[%clk 0:02:52]} 9. O-O {[%clk 0:02:48]}  O-O {[%clk 0:02:41]} 10. a3 {[%clk 0:02:47]}  b6 {[%clk 0:02:32]} 11. Be3 {[%clk 0:02:42]}  a5 {[%clk 0:02:29]} 12. Nbd2 {[%clk 0:02:42]}  Ba6 {[%clk 0:02:29]} 13. Rf2 {[%clk 0:02:42]}  Rc8 {[%clk 0:02:19]} 14. g4 {[%clk 0:02:34]}  f6 {[%clk 0:02:04]} 15. f5 {[%clk 0:02:07]}  fxe5 {[%clk 0:01:59]} 16. fxe6 {[%clk 0:02:07]}  exd4 {[%clk 0:01:45]} 17. cxd4 {[%clk 0:02:01]}  Nf6 {[%clk 0:01:44]} 18. Ne5 {[%clk 0:01:43]}  Nxd4 {[%clk 0:01:14]} 19. Bxd4 {[%clk 0:01:36]}  cxd4 {[%clk 0:01:14]} 20. g5 {[%clk 0:01:34]}  Ne4 {[%clk 0:00:54]} 21. Nxe4 {[%clk 0:01:33]}  dxe4 {[%clk 0:00:53]} 22. Bxe4 {[%clk 0:01:16]}  Bxg5 {[%clk 0:00:42]} 23. Qh5 {[%clk 0:00:32]}  Bh6 {[%clk 0:00:19]} 24. Nf7 {[%clk 0:00:22]}  Rxf7 {[%clk 0:00:13]} 25. Qxf7+ {[%clk 0:00:20]}  Kh8 {[%clk 0:00:13]} 26. e7 {[%clk 0:00:21]}  Qg8 {[%clk 0:00:10]} 27. Qf8 {[%clk 0:00:15]}  Bb5 {[%clk 0:00:06]} 28. Bd5 {[%clk 0:00:14]}  Be3 {[%clk 0:00:01]} 29. Bxg8 {[%clk 0:00:13]}  Bxf2+ {[%clk 0:00:01]} 30. Kxf2 {[%clk 0:00:14]} 1-0


[Site "https://www.chess.com"]

[Event "Titled Tuesday Blitz February 21 Late 2023"]
[White "Salimova, Nurgyul"]
[Black "Postma, Dinant"]
[WhiteFideId "2915138"]
[BlackFideId "1018612"]
[WhiteElo "2391"]
[BlackElo "2131"]
[Result "0-1"]
[Round "07"]
[TimeControl "180+2"]
[Date "2023.02.21"]
[WhiteClock "0:00:03"]
[BlackClock "0:00:08"]

1. d4 {[%clk 0:03:00]}  d5 {[%clk 0:02:57]} 2. Nf3 {[%clk 0:03:01]}  c5 {[%clk 0:02:57]} 3. c3 {[%clk 0:02:59]}  e6 {[%clk 0:02:56]} 4. Bf4 {[%clk 0:02:55]}  Nf6 {[%clk 0:02:56]} 5. e3 {[%clk 0:02:56]}  Bd6 {[%clk 0:02:54]} 6. Nbd2 {[%clk 0:02:52]}  Qc7 {[%clk 0:02:43]} 7. Bg3 {[%clk 0:02:43]}  Nbd7 {[%clk 0:02:39]} 8. Bd3 {[%clk 0:02:40]}  O-O {[%clk 0:02:36]} 9. Qe2 {[%clk 0:02:31]}  e5 {[%clk 0:02:28]} 10. dxe5 {[%clk 0:02:32]}  Nxe5 {[%clk 0:02:29]} 11. Nxe5 {[%clk 0:02:31]}  Bxe5 {[%clk 0:02:30]} 12. Nf3 {[%clk 0:02:14]}  Bd6 {[%clk 0:02:29]} 13. Bxd6 {[%clk 0:02:06]}  Qxd6 {[%clk 0:02:29]} 14. h3 {[%clk 0:02:07]}  Be6 {[%clk 0:01:59]} 15. O-O {[%clk 0:02:01]}  h6 {[%clk 0:01:57]} 16. Rfd1 {[%clk 0:01:59]}  Rad8 {[%clk 0:01:51]} 17. Bc2 {[%clk 0:01:56]}  Qc7 {[%clk 0:01:42]} 18. Qb5 {[%clk 0:01:47]}  a6 {[%clk 0:01:36]} 19. Qe2 {[%clk 0:01:46]}  Rfe8 {[%clk 0:01:34]} 20. b4 {[%clk 0:01:35]}  Ne4 {[%clk 0:01:25]} 21. Bxe4 {[%clk 0:01:20]}  dxe4 {[%clk 0:01:26]} 22. Nd2 {[%clk 0:01:13]}  Qe5 {[%clk 0:01:20]} 23. bxc5 {[%clk 0:01:10]}  Qxc5 {[%clk 0:01:06]} 24. Nxe4 {[%clk 0:01:07]}  Rxd1+ {[%clk 0:01:02]} 25. Rxd1 {[%clk 0:01:04]}  Qc6 {[%clk 0:01:00]} 26. Rd4 {[%clk 0:00:53]}  Bxh3 {[%clk 0:00:57]} 27. Qf3 {[%clk 0:00:32]}  Be6 {[%clk 0:00:52]} 28. Nd6 {[%clk 0:00:24]}  Qxf3 {[%clk 0:00:44]} 29. gxf3 {[%clk 0:00:25]}  Re7 {[%clk 0:00:44]} 30. a4 {[%clk 0:00:25]}  Rc7 {[%clk 0:00:36]} 31. c4 {[%clk 0:00:25]}  Kf8 {[%clk 0:00:34]} 32. f4 {[%clk 0:00:23]}  g6 {[%clk 0:00:30]} 33. e4 {[%clk 0:00:19]}  Ke7 {[%clk 0:00:26]} 34. e5 {[%clk 0:00:19]}  h5 {[%clk 0:00:22]} 35. Rd2 {[%clk 0:00:14]}  Bxc4 {[%clk 0:00:20]} 36. Rc2 {[%clk 0:00:14]}  b5 {[%clk 0:00:20]} 37. axb5 {[%clk 0:00:14]}  axb5 {[%clk 0:00:21]} 38. Nxb5 {[%clk 0:00:14]}  Rc6 {[%clk 0:00:20]} 39. Nd4 {[%clk 0:00:10]}  Rc8 {[%clk 0:00:18]} 40. f5 {[%clk 0:00:07]}  Ba6 {[%clk 0:00:15]} 41. f6+ {[%clk 0:00:06]}  Ke8 {[%clk 0:00:11]} 42. Rb2 {[%clk 0:00:05]}  h4 {[%clk 0:00:08]} 43. Rb6 {[%clk 0:00:05]}  Bd3 {[%clk 0:00:08]} 44. Rd6 {[%clk 0:00:03]}  Be4 {[%clk 0:00:08]} 45. e6 {[%clk 0:00:04]}  Rc1+ {[%clk 0:00:07]} 46. Kh2 {[%clk 0:00:03]}  Rh1# {[%clk 0:00:08]} 0-1


[Site "https://www.chess.com"]